Workbook

Sheet Estatísticas
D2: Cotações
A3: Período | B3: Data | D3: DOLOF | E3: BBDC4 | F3: ITUB4 | G3: BVMF3 | H3: LAME4 | I3: MRVE3 | K3: Variações (Retorno)
A4: 0 | B4: 2017-03-01 | D4: 3.0976 | E4: 33.12 | F4: 39.95 | G4: 19.1 | H4: 16.65 | I4: 14.23 | K4: V.DOLOF | L4: V.BBDC4 | M4: V.ITUB4 | N4: V.BVMF3 | O4: V.LAME4 | P4: V.MRVE3
A5: 1 | B5: 2017-03-02 | D5: 3.1138 | E5: 33 | F5: 39.54 | G5: 18.7 | H5: 16.6 | I5: 14 | K5: 0.005229855372 | L5: -0.003623188406 | M5: -0.01026282854 | N5: -0.02094240838 | O5: -0.003003003003 | P5: -0.01616303584
A6: 2 | B6: 2017-03-03 | D6: 3.1364 | E6: 33.78 | F6: 40.26 | G6: 18.8 | H6: 16.62 | I6: 14.23 | K6: 0.007258012718 | L6: 0.02363636364 | M6: 0.01820940819 | N6: 0.005347593583 | O6: 0.001204819277 | P6: 0.01642857143
A7: 3 | B7: 2017-03-06 | D7: 3.1111 | E7: 33.45 | F7: 40.1 | G7: 18.68 | H7: 17.15 | I7: 14.37 | K7: -0.008066573141 | L7: -0.009769094139 | M7: -0.003974167909 | N7: -0.006382978723 | O7: 0.03188929001 | P7: 0.009838369642
A8: 4 | B8: 2017-03-07 | D8: 3.1185 | E8: 33 | F8: 39.43 | G8: 18.47 | H8: 16.94 | I8: 14.21 | K8: 0.002378579923 | L8: -0.0134529148 | M8: -0.01670822943 | N8: -0.01124197002 | O8: -0.01224489796 | P8: -0.01113430759
A9: 5 | B9: 2017-03-08 | D9: 3.1477 | E9: 32.44 | F9: 38.98 | G9: 18.33 | H9: 16.1 | I9: 14.2 | K9: 0.00936347603 | L9: -0.01696969697 | M9: -0.01141262998 | N9: -0.007579859231 | O9: -0.04958677686 | P9: -0.0007037297678
A10: 6 | B10: 2017-03-09 | D10: 3.1735 | E10: 32.15 | F10: 39.1 | G10: 18.2 | H10: 15.8 | I10: 14.85 | K10: 0.008196460908 | L10: -0.008939580764 | M10: 0.003078501796 | N10: -0.007092198582 | O10: -0.01863354037 | P10: 0.04577464789
A11: 7 | B11: 2017-03-10 | D11: 3.1623 | E11: 31.97 | F11: 39.12 | G11: 18.69 | H11: 15.5 | I11: 14.85 | K11: -0.003529226406 | L11: -0.005598755832 | M11: 0.0005115089514 | N11: 0.02692307692 | O11: -0.01898734177 | P11: 0
A12: 8 | B12: 2017-03-13 | D12: 3.1541 | E12: 32.37 | F12: 39.83 | G12: 18.91 | H12: 15.86 | I12: 15 | K12: -0.002593049363 | L12: 0.01251172975 | M12: 0.01814928425 | N12: 0.01177100054 | O12: 0.02322580645 | P12: 0.0101010101
A13: 9 | B13: 2017-03-14 | D13: 3.1639 | E13: 32.1 | F13: 39.44 | G13: 18.8 | H13: 15.6 | I13: 15.1 | K13: 0.003107066992 | L13: -0.008341056534 | M13: -0.009791614361 | N13: -0.005817028027 | O13: -0.01639344262 | P13: 0.006666666667
A14: 10 | B14: 2017-03-15 | D14: 3.1629 | E14: 32.67 | F14: 39.82 | G14: 19.28 | H14: 15.91 | I14: 15.57 | K14: -0.0003160656152 | L14: 0.01775700935 | M14: 0.009634888438 | N14: 0.02553191489 | O14: 0.01987179487 | P14: 0.03112582781
A15: 11 | B15: 2017-03-16 | D15: 3.108 | E15: 32.52 | F15: 39.31 | G15: 18.32 | H15: 16.08 | I15: 15.22 | K15: -0.01735748838 | L15: -0.004591368228 | M15: -0.01280763435 | N15: -0.04979253112 | O15: 0.01068510371 | P15: -0.02247912653
A16: 12 | B16: 2017-03-17 | D16: 3.1075 | E16: 31.52 | F16: 38.18 | G16: 18.21 | H16: 15.65 | I16: 15.25 | K16: -0.0001608751609 | L16: -0.0307503075 | M16: -0.02874586619 | N16: -0.006004366812 | O16: -0.02674129353 | P16: 0.00197109067
A17: 13 | B17: 2017-03-20 | D17: 3.0898 | E17: 32.08 | F17: 38.6 | G17: 18.41 | H17: 15.9 | I17: 15.46 | K17: -0.005695897023 | L17: 0.01776649746 | M17: 0.01100052383 | N17: 0.01098297639 | O17: 0.01597444089 | P17: 0.0137704918
A18: 14 | B18: 2017-03-21 | D18: 3.0765 | E18: 31.13 | F18: 37.77 | G18: 18.37 | H18: 15.48 | I18: 14.82 | K18: -0.004304485727 | L18: -0.02961346633 | M18: -0.02150259067 | N18: -0.002172732211 | O18: -0.02641509434 | P18: -0.04139715395
A19: 15 | B19: 2017-03-22 | D19: 3.0939 | E19: 31.25 | F19: 38.08 | G19: 18.94 | H19: 15.58 | I19: 14.64 | K19: 0.005655777669 | L19: 0.003854802441 | M19: 0.008207572147 | N19: 0.03102885139 | O19: 0.00645994832 | P19: -0.01214574899
A20: 16 | B20: 2017-03-23 | D20: 3.1248 | E20: 31.28 | F20: 37.87 | G20: 18.7 | H20: 15.9 | I20: 14.86 | K20: 0.009987394551 | L20: 0.00096 | M20: -0.005514705882 | N20: -0.01267159451 | O20: 0.02053915276 | P20: 0.0150273224
A21: 17 | B21: 2017-03-24 | D21: 3.1282 | E21: 31.73 | F21: 38.28 | G21: 18.71 | H21: 16.1 | I21: 14.83 | K21: 0.001088069636 | L21: 0.01438618926 | M21: 0.01082651175 | N21: 0.0005347593583 | O21: 0.01257861635 | P21: -0.00201884253
A22: 18 | B22: 2017-03-27 | D22: 3.1256 | E22: 32 | F22: 38.56 | G22: 18.68 | H22: 16.06 | I22: 14.78 | K22: -0.0008311489035 | L22: 0.008509297195 | M22: 0.007314524556 | N22: -0.001603420631 | O22: -0.00248447205 | P22: -0.003371544167
A23: 19 | B23: 2017-03-28 | D23: 3.1303 | E23: 32.18 | F23: 38.43 | G23: 18.67 | H23: 16.44 | I23: 14.45 | K23: 0.001503711287 | L23: 0.005625 | M23: -0.003371369295 | N23: -0.0005353319058 | O23: 0.02366127024 | P23: -0.02232746955
A24: 20 | B24: 2017-03-29 | D24: 3.1229 | E24: 32.85 | F24: 39 | G24: 19.35 | H24: 16.45 | I24: 14.91 | K24: -0.002363990672 | L24: 0.02082038533 | M24: 0.01483216237 | N24: 0.03642206749 | O24: 0.0006082725061 | P24: 0.03183391003
A25: 21 | B25: 2017-03-30 | D25: 3.1247 | E25: 32.64 | F25: 38.54 | G25: 19.39 | H25: 16.42 | I25: 14.68 | K25: 0.0005763873323 | L25: -0.006392694064 | M25: -0.01179487179 | N25: 0.002067183463 | O25: -0.001823708207 | P25: -0.01542588867
A26: 22 | B26: 2017-03-31 | D26: 3.1684 | E26: 32.38 | F26: 37.9 | G26: 19.29 | H26: 16.36 | I26: 14.36 | K26: 0.01398534259 | L26: -0.007965686275 | M26: -0.01660612351 | N26: -0.005157297576 | O26: -0.00365408039 | P26: -0.02179836512
A27: 23 | B27: 2017-04-03 | D27: 3.1167 | E27: 32.54 | F27: 38.52 | G27: 19.45 | H27: 16.25 | I27: 14.49 | K27: -0.01631738417 | L27: 0.004941321804 | M27: 0.01635883905 | N27: 0.008294453084 | O27: -0.006723716381 | P27: 0.009052924791
A28: 24 | B28: 2017-04-04 | D28: 3.1231 | E28: 32.77 | F28: 38.72 | G28: 19.69 | H28: 16.11 | I28: 14.78 | K28: 0.002053453974 | L28: 0.007068223725 | M28: 0.005192107996 | N28: 0.01233933162 | O28: -0.008615384615 | P28: 0.02001380262
A29: 25 | B29: 2017-04-05 | D29: 3.0923 | E29: 32.1 | F29: 38.01 | G29: 19.48 | H29: 15.99 | I29: 14.38 | K29: -0.009861996094 | L29: -0.02044552945 | M29: -0.01833677686 | N29: -0.01066531234 | O29: -0.007448789572 | P29: -0.02706359946
A30: 26 | B30: 2017-04-06 | D30: 3.116 | E30: 31.76 | F30: 37.71 | G30: 19.15 | H30: 15.9 | I30: 14.71 | K30: 0.00766419817 | L30: -0.01059190031 | M30: -0.007892659826 | N30: -0.01694045175 | O30: -0.005628517824 | P30: 0.02294853964
A31: 27 | B31: 2017-04-07 | D31: 3.1302 | E31: 31.83 | F31: 38 | G31: 19.46 | H31: 16.15 | I31: 14.95 | K31: 0.004557124519 | L31: 0.002204030227 | M31: 0.007690267833 | N31: 0.01618798956 | O31: 0.01572327044 | P31: 0.01631543168
A32: 28 | B32: 2017-04-10 | D32: 3.1409 | E32: 32.03 | F32: 37.93 | G32: 19.31 | H32: 16.15 | I32: 15.03 | K32: 0.003418311929 | L32: 0.006283380459 | M32: -0.001842105263 | N32: -0.007708119219 | O32: 0 | P32: 0.005351170569
A33: 29 | B33: 2017-04-11 | D33: 3.1424 | E33: 32.11 | F33: 37.86 | G33: 19.14 | H33: 16.13 | I33: 14.96 | K33: 0.0004775701232 | L33: 0.002497658445 | M33: -0.001845504877 | N33: -0.008803728638 | O33: -0.001238390093 | P33: -0.004657351963
A34: 30 | B34: 2017-04-12 | D34: 3.1463 | E34: 31.79 | F34: 37.81 | G34: 19.06 | H34: 15.9 | I34: 14.86 | K34: 0.001241089613 | L34: -0.009965742759 | M34: -0.001320655045 | N34: -0.004179728318 | O34: -0.01425914445 | P34: -0.006684491979
A35: 31 | B35: 2017-04-13 | D35: 3.1269 | E35: 30.82 | F35: 37.12 | G35: 18.51 | H35: 15.64 | I35: 14.76 | K35: -0.00616597273 | L35: -0.03051273986 | M35: -0.01824914044 | N35: -0.02885624344 | O35: -0.01635220126 | P35: -0.006729475101
A36: 32 | B36: 2017-04-17 | D36: 3.1036 | E36: 32.2 | F36: 38.78 | G36: 19.55 | H36: 16.05 | I36: 15.53 | K36: -0.007451469507 | L36: 0.0447761194 | M36: 0.04471982759 | N36: 0.05618584549 | O36: 0.02621483376 | P36: 0.05216802168
A37: 33 | B37: 2017-04-18 | D37: 3.0958 | E37: 32.01 | F37: 38.64 | G37: 19.7 | H37: 16.21 | I37: 15.4 | K37: -0.002513210465 | L37: -0.005900621118 | M37: -0.003610108303 | N37: 0.007672634271 | O37: 0.009968847352 | P37: -0.008370895042
A38: 34 | B38: 2017-04-19 | D38: 3.1294 | E38: 31.69 | F38: 38.3 | G38: 19.31 | H38: 16.01 | I38: 14.98 | K38: 0.0108534143 | L38: -0.009996875976 | M38: -0.008799171843 | N38: -0.01979695431 | O38: -0.01233806292 | P38: -0.02727272727
A39: 35 | B39: 2017-04-20 | D39: 3.1453 | E39: 31.14 | F39: 37.74 | G39: 19.15 | H39: 16.4 | I39: 15.43 | K39: 0.005080846169 | L39: -0.01735563269 | M39: -0.01462140992 | N39: -0.008285862248 | O39: 0.02435977514 | P39: 0.0300400534
A40: 36 | B40: 2017-04-24 | D40: 3.1251 | E40: 31.71 | F40: 38.47 | G40: 19.02 | H40: 16.66 | I40: 15.35 | K40: -0.006422280864 | L40: 0.0183044316 | M40: 0.01934287228 | N40: -0.006788511749 | O40: 0.01585365854 | P40: -0.00518470512
A41: 37 | B41: 2017-04-25 | D41: 3.1577 | E41: 32 | F41: 38.72 | G41: 19.16 | H41: 16.7 | I41: 15.79 | K41: 0.01043166619 | L41: 0.009145380006 | M41: 0.006498570315 | N41: 0.007360672976 | O41: 0.002400960384 | P41: 0.02866449511
A42: 38 | B42: 2017-04-26 | D42: 3.1847 | E42: 32.54 | F42: 38.79 | G42: 19.09 | H42: 16.75 | I42: 15.64 | K42: 0.008550527283 | L42: 0.016875 | M42: 0.00180785124 | N42: -0.003653444676 | O42: 0.002994011976 | P42: -0.009499683344
A43: 39 | B43: 2017-04-27 | D43: 3.1763 | E43: 33.49 | F43: 39.01 | G43: 18.95 | H43: 16.59 | I43: 15.58 | K43: -0.002637611078 | L43: 0.02919483712 | M43: 0.005671564836 | N43: -0.007333682556 | O43: -0.009552238806 | P43: -0.003836317136
A44: 40 | B44: 2017-04-28 | D44: 3.1984 | E44: 33.41 | F44: 39.26 | G44: 19.01 | H44: 16.84 | I44: 15.94 | K44: 0.006957781066 | L44: -0.002388772768 | M44: 0.006408613176 | N44: 0.003166226913 | O44: 0.01506931887 | P44: 0.02310654685
A45: 41 | B45: 2017-05-02 | D45: 3.1724 | E45: 31.19 | F45: 40.05 | G45: 19.55 | H45: 18.08 | I45: 15.93 | K45: -0.008129064532 | L45: -0.06644717151 | M45: 0.02012226184 | N45: 0.02840610205 | O45: 0.07363420428 | P45: -0.0006273525721
A46: 42 | B46: 2017-05-03 | D46: 3.1489 | E46: 31.15 | F46: 39.39 | G46: 19.51 | H46: 18.03 | I46: 16.05 | K46: -0.007407640903 | L46: -0.001282462328 | M46: -0.01647940075 | N46: -0.002046035806 | O46: -0.002765486726 | P46: 0.007532956685
A47: 43 | B47: 2017-05-04 | D47: 3.178 | E47: 30.69 | F47: 38.1 | G47: 19.3 | H47: 17.6 | I47: 15.56 | K47: 0.009241322367 | L47: -0.01476725522 | M47: -0.03274942879 | N47: -0.01076371092 | O47: -0.02384914032 | P47: -0.03052959502
A48: 44 | B48: 2017-05-05 | D48: 3.1764 | E48: 30.73 | F48: 38.7 | G48: 19.45 | H48: 17.5 | I48: 15.3 | K48: -0.0005034612964 | L48: 0.001303356142 | M48: 0.0157480315 | N48: 0.007772020725 | O48: -0.005681818182 | P48: -0.01670951157
A49: 45 | B49: 2017-05-08 | D49: 3.1938 | E49: 30.71 | F49: 38.79 | G49: 19.4 | H49: 17.35 | I49: 15.04 | K49: 0.005477899509 | L49: -0.000650829808 | M49: 0.002325581395 | N49: -0.002570694087 | O49: -0.008571428571 | P49: -0.01699346405
A50: 46 | B50: 2017-05-09 | D50: 3.1857 | E50: 30.98 | F50: 38.89 | G50: 19.48 | H50: 17.34 | I50: 15.15 | K50: -0.002536163817 | L50: 0.008791924455 | M50: 0.002577984016 | N50: 0.00412371134 | O50: -0.0005763688761 | P50: 0.007313829787
A51: 47 | B51: 2017-05-10 | D51: 3.1606 | E51: 31.44 | F51: 39.08 | G51: 19.91 | H51: 18 | I51: 15.44 | K51: -0.007878959098 | L51: 0.01484828922 | M51: 0.004885574698 | N51: 0.02207392197 | O51: 0.03806228374 | P51: 0.01914191419
A52: 48 | B52: 2017-05-11 | D52: 3.1559 | E52: 31.63 | F52: 39.75 | G52: 20.01 | H52: 17.73 | I52: 15.06 | K52: -0.001487059419 | L52: 0.006043256997 | M52: 0.01714431934 | N52: 0.005022601708 | O52: -0.015 | P52: -0.02461139896
A53: 49 | B53: 2017-05-12 | D53: 3.129 | E53: 31.95 | F53: 40.13 | G53: 20.14 | H53: 17.15 | I53: 14.96 | K53: -0.008523717482 | L53: 0.01011697755 | M53: 0.009559748428 | N53: 0.006496751624 | O53: -0.03271291596 | P53: -0.006640106242
A54: 50 | B54: 2017-05-15 | D54: 3.1011 | E54: 32 | F54: 40.3 | G54: 20.38 | H54: 17.1 | I54: 15.2 | K54: -0.008916586769 | L54: 0.001564945227 | M54: 0.004236232245 | N54: 0.01191658391 | O54: -0.002915451895 | P54: 0.01604278075
A55: 51 | B55: 2017-05-16 | D55: 3.0924 | E55: 32.05 | F55: 40.25 | G55: 20.64 | H55: 17.08 | I55: 14.66 | K55: -0.002805456128 | L55: 0.0015625 | M55: -0.001240694789 | N55: 0.0127576055 | O55: -0.001169590643 | P55: -0.03552631579
A56: 52 | B56: 2017-05-17 | D56: 3.1076 | E56: 31.42 | F56: 39.43 | G56: 20.5 | H56: 17.01 | I56: 14.54 | K56: 0.004915276161 | L56: -0.01965678627 | M56: -0.02037267081 | N56: -0.006782945736 | O56: -0.004098360656 | P56: -0.008185538881
A57: 53 | B57: 2017-05-18 | D57: 3.3807 | E57: 27.3 | F57: 34.68 | G57: 18.77 | H57: 14.4 | I57: 13.34 | K57: 0.08788132321 | L57: -0.1311266709 | M57: -0.1204666498 | N57: -0.0843902439 | O57: -0.1534391534 | P57: -0.08253094911
A58: 54 | B58: 2017-05-19 | D58: 3.2878 | E58: 27.75 | F58: 35.58 | G58: 19.15 | H58: 14.45 | I58: 13.65 | K58: -0.02747951608 | L58: 0.01648351648 | M58: 0.02595155709 | N58: 0.02024507192 | O58: 0.003472222222 | P58: 0.02323838081
J59: Média | K59: =AVERAGE(K5:K58) -> 0.001201399792 | L59: =AVERAGE(L5:L58) -> -0.002949340325 | M59: -0.001894672556 | N59: 0.0002605844677 | O59: -0.002193553893 | P59: -0.0005027765605
D60: Matriz de Correlação
D61: V.DOLOF | E61: V.BBDC4 | F61: V.ITUB4 | G61: V.BVMF3 | H61: V.LAME4 | I61: V.MRVE3
C62: V.DOLOF | D62: 1 | E62: -0.6347996474 | F62: -0.7435746071 | G62: -0.5641007579 | H62: -0.6880148963 | I62: -0.4323084063
C63: V.BBDC4 | D63: -0.6347996474 | E63: 1 | F63: 0.8193491741 | G63: 0.6196842576 | H63: 0.5575635429 | I63: 0.573807103
C64: V.ITUB4 | D64: -0.7435746071 | E64: 0.8193491741 | F64: 1 | G64: 0.7956741666 | H64: 0.7411400175 | I64: 0.6447952271
C65: V.BVMF3 | D65: -0.5641007579 | E65: 0.6196842576 | F65: 0.7956741666 | G65: 1 | H65: 0.6057780503 | I65: 0.5924514925
C66: V.LAME4 | D66: -0.6880148963 | E66: 0.5575635429 | F66: 0.7411400175 | G66: 0.6057780503 | H66: 1 | I66: 0.5427948831
C67: V.MRVE3 | D67: -0.4323084063 | E67: 0.573807103 | F67: 0.6447952271 | G67: 0.5924514925 | H67: 0.5427948831 | I67: 1
D69: Matriz de Covariância
D70: V.DOLOF | E70: V.BBDC4 | F70: V.ITUB4 | G70: V.BVMF3 | H70: V.LAME4 | I70: V.MRVE3
C71: V.DOLOF | D71: 0.0002018288327 | E71: -0.0002228111287 | F71: -0.0002300682622 | G71: -0.0001638926024 | H71: -0.0002782080786 | I71: -0.0001413760646
C72: V.BBDC4 | D72: -0.0002228111287 | E72: 0.0006104037532 | F72: 0.0004408777439 | G72: 0.000313105088 | H72: 0.0003920877357 | I72: 0.0003263361018
C73: V.ITUB4 | D73: -0.0002300682622 | E73: 0.0004408777439 | F73: 0.0004743305701 | G73: 0.0003543944235 | H73: 0.000459431864 | I73: 0.0003232607495
C74: V.BVMF3 | D74: -0.0001638926024 | E74: 0.000313105088 | F74: 0.0003543944235 | G74: 0.000418236689 | H74: 0.0003526183333 | I74: 0.0002789038219
C75: V.LAME4 | D75: -0.0002782080786 | E75: 0.0003920877357 | F75: 0.000459431864 | G75: 0.0003526183333 | H75: 0.0008101409459 | I75: 0.0003556367559
C76: V.MRVE3 | D76: -0.0001413760646 | E76: 0.0003263361018 | F76: 0.0003232607495 | G76: 0.0002789038219 | H76: 0.0003556367559 | I76: 0.0005298844898
C77: Variâncias em destaque na diagoral da matriz de covariância
A80: Séries utilizadas
A81: Dolar Ptax Venda | C81: DOLOF
A82: Bradesco - PN | C82: BBDC4
A83: ItauUnibanco - PN | C83: ITUB4
A84: BmfBovespa - ON | C84: BVMF3
A85: Lojas Americ - PN | C85: LAME4
A86: MRV - ON | C86: MRVE3
C89: Teste-T
D90: V.DOLOF | E90: V.BBDC4 | F90: V.ITUB4 | G90: V.BVMF3 | H90: V.LAME4 | I90: V.MRVE3
C91: V.DOLOF
C92: V.BBDC4 | D92: =D63*SQRT((54-2)/(1-D63^2)) -> -5.924346985
C93: V.ITUB4 | D93: =D64*SQRT((54-2)/(1-D64^2)) -> -8.019096497 | E93: 10.3060605
C94: V.BVMF3 | D94: -4.926437017 | E94: 5.693571822 | F94: =F65*SQRT((54-2)/(1-F65^2)) -> 9.472432579
C95: V.LAME4 | D95: -6.836667311 | E95: 4.8433706 | F95: =F66*SQRT((54-2)/(1-F66^2)) -> 7.960725115 | G95: 5.49037547
C96: V.MRVE3 | D96: -3.457170912 | E96: 5.052295428 | F96: =F67*SQRT((54-2)/(1-F67^2)) -> 6.083145034 | G96: 5.303123121 | H96: 4.660449224
C98: Valor-P
D99: V.DOLOF | E99: V.BBDC4 | F99: V.ITUB4 | G99: V.BVMF3 | H99: V.LAME4 | I99: V.MRVE3
C100: V.DOLOF
C101: V.BBDC4 | D101: =2*_xlfn.T.DIST(-ABS(D92),54-2,TRUE) -> 2.534462013e-07
C102: V.ITUB4 | D102: =2*_xlfn.T.DIST(-ABS(D93),54-2,TRUE) -> 1.187631642e-10 | E102: =2*_xlfn.T.DIST(-ABS(E93),54-2,TRUE) -> 3.632306403e-14
C103: V.BVMF3 | D103: 8.90393056e-06 | E103: 5.841607557e-07 | F103: =2*_xlfn.T.DIST(-ABS(F94),54-2,TRUE) -> 6.529647905e-13
C104: V.LAME4 | D104: 9.015150954e-09 | E104: 1.188313441e-05 | F104: =2*_xlfn.T.DIST(-ABS(F95),54-2,TRUE) -> 1.468722983e-10 | G104: 1.212492608e-06
C105: V.MRVE3 | D105: 0.001096493733 | E105: 5.734208251e-06 | F105: =2*_xlfn.T.DIST(-ABS(F96),54-2,TRUE) -> 1.422706809e-07 | G105: 2.364676917e-06 | H105: 2.23140553e-05

Sheet Simulação
C1: Médias | J1: Risco (Var) | K1: Retorno | M1: Risco | N1: Retorno
C2: Retorno_i | D2: Participação | E2: Aleatório | J2: =C13 -> 0.0003110487441 | K2: =C11 -> -0.001029213165 | M2: 0.0001903381788 | N2: -0.0007042178708
B3: V.DOLOF | C3: 0.001201399792 | D3: =E3/$E$9 -> 0.08378378378 | E3: =RANDBETWEEN(1,100) -> 31 | F3: =ALEATÓRIOENTRE(1;100) | M3: 0.0001556112422 | N3: -0.0005406665615
B4: V.BBDC4 | C4: -0.002949340325 | D4: =E4/$E$9 -> 0.07027027027 | E4: =RANDBETWEEN(1,100) -> 26 | M4: 0.0002543988098 | N4: -0.001187939684
B5: V.ITUB4 | C5: -0.001894672556 | D5: 0.2297297297 | E5: 85 | M5: 0.0003361770541 | N5: -0.001359976822
B6: V.BVMF3 | C6: 0.0002605844677 | D6: 0.2702702703 | E6: 100 | M6: 0.0002592972936 | N6: -0.0004661050854
B7: V.LAME4 | C7: -0.002193553893 | D7: 0.227027027 | E7: 84 | M7: 0.0001244844785 | N7: -0.0006048251167
B8: V.MRVE3 | C8: -0.0005027765605 | D8: 0.1189189189 | E8: 44 | M8: 0.0002372309431 | N8: -0.001097424387
D9: =SUM(D3:D8) -> 1 | E9: =SUM(E3:E8) -> 370 | M9: 0.0002204002779 | N9: -0.00131043738
M10: 0.0002205803676 | N10: -0.0007059049878
B11: Retorno da carteira | C11: =SUMPRODUCT(C3:C8,D3:D8) -> -0.001029213165 | D11: =SOMARPRODUTO(C3:C8;D3:D8) | M11: 0.0002090394721 | N11: -0.0006064300534
M12: 0.0003497057569 | N12: -0.001888128339
B13: Variância da carteira | C13: =MMULT(TRANSPOSE(particip),MMULT(Mcov,particip)) -> 0.0003110487441 | D13: =MATRIZ.MULT(TRANSPOR(particip);MATRIZ.MULT(Mcov;particip)) | M13: 0.0002739846983 | N13: -0.001152006077
M14: 0.0001768365634 | N14: -0.0008130664796
B15: Desvio Padrão da carteira | C15: =SQRT(C13) -> 0.01763657405 | D15: =RAIZ(C13) | M15: 0.0003218429928 | N15: -0.001807836178
M16: 0.0002794317333 | N16: -0.001364025636
M17: 0.000234097117 | N17: -0.0009731345854
M18: 0.000392386555 | N18: -0.001295546169
M19: 0.0002587122889 | N19: -0.0006277082007
M20: 0.0001336464722 | N20: -0.000877109328
M21: 0.0001837746573 | N21: -0.001005802959
M22: 0.0002933007316 | N22: -0.001188099204
M23: 0.0002686799366 | N23: -0.00115802467
M24: 0.000239357958 | N24: -0.00085849677
M25: 0.0003319041228 | N25: -0.001172833167
M26: 0.0002533103819 | N26: -0.001508904081
M27: 0.0002936752734 | N27: -0.001297190135
M28: 0.0002043979114 | N28: -0.0009011819726
M29: 0.0002594916552 | N29: -0.001392948436
M30: 0.0004622782409 | N30: -0.002144102088
M31: 0.0003131981341 | N31: -0.0008679731736
M32: 0.0003031785411 | N32: -0.0007436646451
M33: 0.0003217788623 | N33: -0.001383192084
M34: 0.0002690135093 | N34: -0.001284850422
M35: 0.0001821084632 | N35: -0.0006010429234
M36: 0.0002532754245 | N36: -0.0009938319026
M37: 0.0002814324056 | N37: -0.001420641826
M38: 0.0002730467726 | N38: -0.0011042586
M39: 0.0001424472816 | N39: -0.0008205785264
M40: 0.0004099496705 | N40: -0.001139095786
M41: 0.0001986927291 | N41: -0.001145196665
M42: 0.0001135254591 | N42: -0.0008182994298
M43: 0.0001133753262 | N43: -0.0006517445118
M44: 0.0001890260493 | N44: -0.0009708538048
M45: 0.0002604017567 | N45: -0.0009869825909
M46: 0.0001591295687 | N46: -0.0005728427446
M47: 0.0001454826286 | N47: -0.0004846326579
M48: 0.0003589700851 | N48: -0.001692503878
M49: 0.0002732703639 | N49: -0.0008576230063
M50: 0.0002458602136 | N50: -0.00136929572
M51: 0.0001861195188 | N51: -0.001120675773
M52: 0.0004038401084 | N52: -0.001620153076
M53: 0.0002227913593 | N53: -0.001074675074
M54: 0.0002474694138 | N54: -0.0006138362522
M55: 0.0001316300633 | N55: -0.0008632390579
M56: 0.0001152808017 | N56: -0.0003474137426
M57: 0.0001979389192 | N57: -0.0009361255774
M58: 0.0002046832732 | N58: -0.000782759809
M59: 0.0002709031064 | N59: -0.001477625735
M60: 0.0001915251406 | N60: -0.0008799295629
M61: 0.0002350832795 | N61: -0.0005699900202
M62: 0.0003988246923 | N62: -0.001313914528
M63: 0.0002170253363 | N63: -0.001015681761
M64: 0.0003704526968 | N64: -0.001176657244
M65: 0.0001218991972 | N65: -0.0005212324242
M66: 0.000246049852 | N66: -0.00102078554
M67: 0.0002623092379 | N67: -0.001486536662
M68: 0.0001863988234 | N68: -0.0006291478879
M69: 0.0003313404573 | N69: -0.001325947712
M70: 0.0002896832649 | N70: -0.001627312093
M71: 0.0001789215792 | N71: -0.0005833925247
M72: 0.0001328822554 | N72: -0.0008063650608
M73: 0.0001458681581 | N73: -0.000465790477
M74: 0.0003038430907 | N74: -0.001258562683
M75: 0.0002362154993 | N75: -0.001051104203
M76: 0.0003267057384 | N76: -0.00139113452
M77: 0.0002123719972 | N77: -0.0009442760445
M78: 0.0001669639416 | N78: -0.0002924339959
M79: 0.0001757274734 | N79: -0.001081674093
M80: 0.0003657891031 | N80: -0.001512351487
M81: 0.0002449163789 | N81: -0.001614537402
M82: 0.0001568989091 | N82: -0.0006313971042
M83: 0.0003029888576 | N83: -0.0009036817925
M84: 0.000179920708 | N84: -0.0008124380954
M85: 0.0003452515611 | N85: -0.0013713451
M86: 0.000106693676 | N86: -0.0002552911766
M87: 0.0003752297672 | N87: -0.00153038005
M88: 0.0002532482511 | N88: -0.001270851325
M89: 0.000343854717 | N89: -0.001498487048
M90: 0.0003964941673 | N90: -0.001811211065
M91: 0.0001523607072 | N91: -0.0004420686744
M92: 0.0001637633027 | N92: -0.000550677705
M93: 0.0001868238384 | N93: -0.00102079625
M94: 0.0002895498378 | N94: -0.00151036485
M95: 0.0001660083583 | N95: -0.0007431603831
M96: 0.0001370487778 | N96: -0.0007947369052
M97: 0.0002479154107 | N97: -0.001039236345
M98: 0.0003037222948 | N98: -0.001092211233
M99: 0.0002335643079 | N99: -0.001377779789
M100: 0.0003999585748 | N100: -0.001569442728
M101: 0.0003898659151 | N101: -0.001908942223
M102: 0.0003456068015 | N102: -0.001785931053
M103: 0.0002460483602 | N103: -0.001405371737
M104: 0.0001927258025 | N104: -0.0009409700522
M105: 0.0003123483971 | N105: -0.001284858269
M106: 0.0002085116077 | N106: -0.0009180805638
M107: 0.000251621942 | N107: -0.0008768617747
M108: 0.0002373330268 | N108: -0.001442954904
M109: 0.0003541285063 | N109: -0.001339140083
M110: 0.0001515936146 | N110: -0.0007992340917
M111: 0.0002308465852 | N111: -0.001021557889
M112: 0.000137600677 | N112: -0.0008075860388
M113: 0.0002339924273 | N113: -0.001001736339
M114: 0.0001873927398 | N114: -0.0006782063083
M115: 0.0002971438332 | N115: -0.001073248529
M116: 0.0002000919115 | N116: -0.001054188729
M117: 0.0002785911222 | N117: -0.001476613182
M118: 0.0001944254266 | N118: -0.0006209900319
M119: 0.000386739074 | N119: -0.001006490799
M120: 0.0002465930562 | N120: -0.001135233362
M121: 0.0002120478562 | N121: -0.001093356234
M122: 0.0003264515833 | N122: -0.001234075501
M123: 0.0004026732155 | N123: -0.001618351718
M124: 0.0002011682425 | N124: -0.0005760881547
M125: 0.0002497321517 | N125: -0.001321655437
M126: 0.0002484531806 | N126: -0.0009453693384
M127: 0.0001979659868 | N127: -0.001069447458
M128: 0.0002456101872 | N128: -0.001000146529
M129: 0.0002091822713 | N129: -0.0009366663713
M130: 0.0002955167195 | N130: -0.0009616465877
M131: 0.0003681442734 | N131: -0.001291658165
M132: 0.0004487136916 | N132: -0.001844322572
M133: 0.0003496422211 | N133: -0.001306593236
M134: 0.000208675788 | N134: -0.0009302321428
M135: 0.0003608202326 | N135: -0.001815116189
M136: 0.0002104011099 | N136: -0.001027751595
M137: 0.0001959077223 | N137: -0.0009818099073
M138: 0.0002427178057 | N138: -0.0008244103399
M139: 0.0002789379152 | N139: -0.001125675855
M140: 0.0001202342113 | N140: -0.0003936115851
M141: 0.0003777921445 | N141: -0.001375431856
M142: 0.0002705256463 | N142: -0.001163730969
M143: 0.0002390807383 | N143: -0.001122777366
M144: 0.000128216846 | N144: -0.0004820382084
M145: 0.0004016602471 | N145: -0.001740161979
M146: 0.000268546476 | N146: -0.001248912253
M147: 0.0002360481329 | N147: -0.001116327053
M148: 0.000147470951 | N148: -0.000770792749
M149: 0.0001797325804 | N149: -0.0007232882318
M150: 0.0002518375045 | N150: -0.001084100492
M151: 0.0004628956959 | N151: -0.002387111814
M152: 0.0003294788827 | N152: -0.0009236946522
M153: 0.0003450344661 | N153: -0.001314929432
M154: 0.0003460676004 | N154: -0.001358951041
M155: 0.0001286496972 | N155: -0.0004638736381
M156: 0.000166190033 | N156: -0.0006541174648
M157: 9.820013625e-05 | N157: -0.0004552821695
M158: 0.0003544974745 | N158: -0.001404061842
M159: 0.0001931462665 | N159: -0.001098988372
M160: 0.0001696495492 | N160: -0.0004084446116
M161: 5.196682063e-05 | N161: 0.0001275959542
M162: 0.0001547903945 | N162: -0.0006166953299
M163: 0.0003206693864 | N163: -0.001005120304
M164: 0.0003293908559 | N164: -0.00126377616
M165: 0.0002836317002 | N165: -0.001154982089
M166: 0.0001805427812 | N166: -0.0008581134562
M167: 0.0003041354277 | N167: -0.001472978215
M168: 0.0002011824086 | N168: -0.001131515775
M169: 0.0002535196573 | N169: -0.001497039862
M170: 0.0002619758112 | N170: -0.0007589317955
M171: 0.0002839548405 | N171: -0.001204372532
M172: 0.0001595598155 | N172: -0.0002037767682
M173: 0.0002410182481 | N173: -0.001290307546
M174: 0.0002895395225 | N174: -0.001305541605
M175: 0.0001931067337 | N175: -0.001027222147
M176: 0.0002411262773 | N176: -0.0006900875067
M177: 0.0002025343724 | N177: -0.0008416720974
M178: 0.0002159119782 | N178: -0.0007677483287
M179: 0.00023517855 | N179: -0.001263675102
M180: 0.0001430718228 | N180: -0.0006794571293
M181: 0.0001549344029 | N181: -0.000514746137
M182: 0.0002851123941 | N182: -0.0009550352235
M183: 0.0004214977568 | N183: -0.001864135855
M184: 0.0001844648865 | N184: -0.0007851006283
M185: 0.000301745703 | N185: -0.001407394559
M186: 0.0003604395341 | N186: -0.0008018783803
M187: 0.0001601221832 | N187: -0.0008882089565
M188: 0.0001964375369 | N188: -0.00101990784
M189: 0.0001848255736 | N189: -0.0007455699085
M190: 0.0002055415321 | N190: -0.001090233745
M191: 0.0003074971599 | N191: -0.001499486924
M192: 0.0002115520969 | N192: -0.0009515636688
M193: 0.0003605536203 | N193: -0.001839890674
M194: 0.0003208953687 | N194: -0.001430633168
M195: 0.0002163942075 | N195: -0.001106531478
M196: 0.0002536027187 | N196: -0.001111098305
M197: 0.0004054940879 | N197: -0.001804373198
M198: 0.0001616210358 | N198: -0.0008579975211
M199: 0.0001331503563 | N199: -0.0001121242313
M200: 0.0001743179869 | N200: -0.0003578793799
... 801 more rows

Sheet Otimização
C1: Médias | J1: Risco | K1: Retorno
C2: Retorno_i | D2: Participação | G2: Função Objetivo | J2: 0.0002018288344 | K2: =D18 -> 0.001201399792 | L2: 1
B3: V.DOLOF | C3: 0.001201399792 | D3: 0.6860412749 | J3: 0.000114762274 | K3: =K2-D21/3 -> 0.001063041788 | L3: 2
B4: V.BBDC4 | C4: -0.002949340325 | D4: 0 | G4: Variáveis de decisão | J4: 6.869154634e-05 | K4: =K3-D21/3 -> 0.0009246837843 | L4: 3
B5: V.ITUB4 | C5: -0.001894672556 | D5: 0 | J5: 5.569508669e-05 | K5: =K2-$D$21 -> 0.0007863257804 | L5: 4
B6: V.BVMF3 | C6: 0.0002605844677 | D6: 0.3139587206 | G6: Restrição | J6: 3.841684522e-05 | K6: =K5-$D$21 -> 0.0003712517687 | L6: 5
B7: V.LAME4 | C7: -0.002193553893 | D7: 0 | J7: 3.34845741e-05 | K7: =K6-$D$21 -> -4.382224295e-05 | L7: 6
B8: V.MRVE3 | C8: -0.0005027765605 | D8: 0 | J8: 4.355886564e-05 | K8: =K7-$D$21 -> -0.0004588962546 | L8: 7
D9: =SUM(D3:D8) -> 0.9999999955 | J9: 7.55996355e-05 | K9: =K8-$D$21 -> -0.0008739702663 | L9: 8
J10: 0.0001310961095 | K10: =K9-$D$21 -> -0.001289044278 | L10: 9
B11: Retorno da carteira | C11: =SUMPRODUCT(C3:C8,pesos) -> 0.0009060226111 | E11: Retorno Esperado | F11: 0.1 | J11: 0.000211607145 | K11: =K10-$D$21 -> -0.00170411829 | L11: 10
J12: 0.0003171339767 | K12: =K11-$D$21 -> -0.002119192301 | L12: 11
B13: Variância da carteira | C13: =MMULT(TRANSPOSE(pesos),MMULT(Mcov,pesos)) -> 6.561568446e-05 | J13: 0.0004476773341 | K13: =K12-$D$21 -> -0.002534266313
J14: 0.0006104037441 | K14: =K13-$D$21 -> -0.002949340325
B15: Desvio Padrão da carteira | C15: =SQRT(C13) -> 0.008100350885 | D15: =RAIZ(C13) | F15: Índice Sharpe
D17: Retorno | F17: =C11/C15 -> 0.1118497981 | G17: =C11/C15
C18: máx | D18: =MAX(C3:C8) -> 0.001201399792
C19: mín | D19: =MIN(C3:C8) -> -0.002949340325
C20: intervalo | D20: 10 | F20: Risco | G20: Retorno
C21: delta | D21: =(D18-D19)/D20 -> 0.0004150740117 | F21: 6.561568446e-05 | G21: 0.0009060226111
